[Event "Titled Tuesday Blitz November 08 Early 2022"]
[White "Dubov, Daniil"]
[Black "Tari, Aryan"]
[WhiteFideId "24126055"]
[BlackFideId "1510045"]
[WhiteElo "2791"]
[BlackElo "2612"]
[Result "0-1"]
[Round "10"]
[TimeControl "180+1"]
[Date "2022.11.08"]
[WhiteClock "0:00:07"]
[BlackClock "0:00:16"]

1. e4 {[%clk 0:03:00]}  e5 {[%clk 0:02:58]} 2. Nf3 {[%clk 0:03:00]}  Nc6 {[%clk 0:02:59]} 3. Nc3 {[%clk 0:03:00]}  Nf6 {[%clk 0:02:58]} 4. d4 {[%clk 0:03:00]}  exd4 {[%clk 0:02:59]} 5. Nxd4 {[%clk 0:03:01]}  Bb4 {[%clk 0:03:00]} 6. Nxc6 {[%clk 0:03:02]}  bxc6 {[%clk 0:03:01]} 7. Bd3 {[%clk 0:03:02]}  d5 {[%clk 0:03:01]} 8. exd5 {[%clk 0:03:02]}  O-O {[%clk 0:03:02]} 9. O-O {[%clk 0:03:03]}  cxd5 {[%clk 0:03:02]} 10. Qf3 {[%clk 0:03:02]}  Rb8 {[%clk 0:02:50]} 11. h3 {[%clk 0:02:57]}  Re8 {[%clk 0:02:48]} 12. Bf4 {[%clk 0:02:54]}  Bd6 {[%clk 0:02:44]} 13. Bxd6 {[%clk 0:02:46]}  Qxd6 {[%clk 0:02:43]} 14. b3 {[%clk 0:02:47]}  c6 {[%clk 0:02:34]} 15. Rfe1 {[%clk 0:02:41]}  Bd7 {[%clk 0:02:32]} 16. Ne2 {[%clk 0:02:37]}  c5 {[%clk 0:02:26]} 17. Nf4 {[%clk 0:02:33]}  Bc6 {[%clk 0:02:22]} 18. Qg3 {[%clk 0:02:31]}  h6 {[%clk 0:02:17]} 19. Rad1 {[%clk 0:02:30]}  a5 {[%clk 0:02:07]} 20. Bf5 {[%clk 0:02:05]}  Rxe1+ {[%clk 0:01:54]} 21. Rxe1 {[%clk 0:02:05]}  Rd8 {[%clk 0:01:46]} 22. h4 {[%clk 0:01:48]}  a4 {[%clk 0:01:44]} 23. Nd3 {[%clk 0:01:36]}  Qxg3 {[%clk 0:01:37]} 24. fxg3 {[%clk 0:01:37]}  c4 {[%clk 0:01:16]} 25. Ne5 {[%clk 0:00:59]}  Bb5 {[%clk 0:00:54]} 26. bxc4 {[%clk 0:00:43]}  Bxc4 {[%clk 0:00:53]} 27. a3 {[%clk 0:00:42]}  g6 {[%clk 0:00:52]} 28. Nc6 {[%clk 0:00:23]}  Rd6 {[%clk 0:00:48]} 29. Ne7+ {[%clk 0:00:18]}  Kf8 {[%clk 0:00:48]} 30. Bd3 {[%clk 0:00:11]}  Bxd3 {[%clk 0:00:43]} 31. cxd3 {[%clk 0:00:12]}  Rb6 {[%clk 0:00:43]} 32. Nc8 {[%clk 0:00:06]}  Rb3 {[%clk 0:00:43]} 33. Rf1 {[%clk 0:00:06]}  Kg7 {[%clk 0:00:42]} 34. Nd6 {[%clk 0:00:07]}  Rxd3 {[%clk 0:00:39]} 35. g4 {[%clk 0:00:07]}  g5 {[%clk 0:00:32]} 36. Nf5+ {[%clk 0:00:07]}  Kh7 {[%clk 0:00:32]} 37. Nd6 {[%clk 0:00:05]}  Nxg4 {[%clk 0:00:29]} 38. hxg5 {[%clk 0:00:03]}  hxg5 {[%clk 0:00:29]} 39. Nxf7 {[%clk 0:00:03]}  Kg6 {[%clk 0:00:28]} 40. Nh8+ {[%clk 0:00:03]}  Kh5 {[%clk 0:00:28]} 41. Re1 {[%clk 0:00:02]}  Rxa3 {[%clk 0:00:28]} 42. Nf7 {[%clk 0:00:02]}  Rb3 {[%clk 0:00:25]} 43. Kf1 {[%clk 0:00:02]}  a3 {[%clk 0:00:20]} 44. Ra1 {[%clk 0:00:03]}  Ne3+ {[%clk 0:00:19]} 45. Kf2 {[%clk 0:00:03]}  Nc2 {[%clk 0:00:18]} 46. Rh1+ {[%clk 0:00:03]}  Kg6 {[%clk 0:00:18]} 47. Ne5+ {[%clk 0:00:04]}  Kf5 {[%clk 0:00:18]} 48. Nc6 {[%clk 0:00:02]}  a2 {[%clk 0:00:18]} 49. Rh6 {[%clk 0:00:01]}  Rb2 {[%clk 0:00:17]} 50. Kf3 {[%clk 0:00:01]}  Ne1+ {[%clk 0:00:17]} 51. Ke3 {[%clk 0:00:02]}  Nxg2+ {[%clk 0:00:17]} 52. Kf3 {[%clk 0:00:02]}  g4+ {[%clk 0:00:18]} 53. Kg3 {[%clk 0:00:01]}  a1=Q {[%clk 0:00:18]} 54. Nd4+ {[%clk 0:00:02]}  Ke4 {[%clk 0:00:19]} 55. Ne6 {[%clk 0:00:03]}  Rb3+ {[%clk 0:00:19]} 56. Kxg4 {[%clk 0:00:03]}  Qd1+ {[%clk 0:00:19]} 57. Kg5 {[%clk 0:00:04]}  Rg3+ {[%clk 0:00:19]} 58. Kf6 {[%clk 0:00:04]}  Nf4 {[%clk 0:00:19]} 59. Nc5+ {[%clk 0:00:04]}  Kd4 {[%clk 0:00:18]} 60. Nd7 {[%clk 0:00:05]}  Rg6+ {[%clk 0:00:17]} 61. Kf5 {[%clk 0:00:06]}  Rxh6 {[%clk 0:00:17]} 62. Ne5 {[%clk 0:00:07]}  Qh5+ {[%clk 0:00:16]} 63. Kxf4 {[%clk 0:00:07]}  Rf6+ {[%clk 0:00:16]} 0-1


[Site "https://www.chess.com"]

[Event "Titled Tuesday Blitz November 08 Early 2022"]
[White "Durarbayli, Vasif"]
[Black "Gholami Orimi, Mahdi"]
[WhiteFideId "13402935"]
[BlackFideId "12558486"]
[WhiteElo "2586"]
[BlackElo "2330"]
[Result "0-1"]
[Round "10"]
[TimeControl "180+1"]
[Date "2022.11.08"]
[WhiteClock "0:00:08"]
[BlackClock "0:00:41"]

1. e4 {[%clk 0:03:00]}  e5 {[%clk 0:02:59]} 2. Nf3 {[%clk 0:03:01]}  Nc6 {[%clk 0:03:00]} 3. Bb5 {[%clk 0:03:01]}  a6 {[%clk 0:03:00]} 4. Ba4 {[%clk 0:03:01]}  Nge7 {[%clk 0:03:00]} 5. c3 {[%clk 0:02:58]}  Ng6 {[%clk 0:02:53]} 6. d4 {[%clk 0:02:47]}  d6 {[%clk 0:02:53]} 7. h3 {[%clk 0:02:41]}  Be7 {[%clk 0:02:52]} 8. Be3 {[%clk 0:02:39]}  O-O {[%clk 0:02:52]} 9. Nbd2 {[%clk 0:02:39]}  f5 {[%clk 0:02:48]} 10. exf5 {[%clk 0:02:37]}  Bxf5 {[%clk 0:02:48]} 11. d5 {[%clk 0:01:49]}  Nb8 {[%clk 0:02:44]} 12. Bc2 {[%clk 0:01:49]}  Nd7 {[%clk 0:02:42]} 13. Bxf5 {[%clk 0:01:48]}  Rxf5 {[%clk 0:02:43]} 14. Qc2 {[%clk 0:01:48]}  Qf8 {[%clk 0:02:40]} 15. c4 {[%clk 0:01:34]}  Qf7 {[%clk 0:02:37]} 16. h4 {[%clk 0:01:25]}  Rf8 {[%clk 0:02:25]} 17. O-O-O {[%clk 0:01:14]}  Nf4 {[%clk 0:02:18]} 18. Bxf4 {[%clk 0:01:12]}  Rxf4 {[%clk 0:02:18]} 19. Ne4 {[%clk 0:01:07]}  Qg6 {[%clk 0:02:14]} 20. Rde1 {[%clk 0:00:55]}  Qxg2 {[%clk 0:02:13]} 21. Nfg5 {[%clk 0:00:55]}  Bxg5 {[%clk 0:01:13]} 22. hxg5 {[%clk 0:00:52]}  g6 {[%clk 0:01:08]} 23. Rhg1 {[%clk 0:00:40]}  Qh3 {[%clk 0:01:03]} 24. Rg3 {[%clk 0:00:30]}  Qf5 {[%clk 0:01:02]} 25. Qe2 {[%clk 0:00:30]}  Nc5 {[%clk 0:00:46]} 26. f3 {[%clk 0:00:17]}  b6 {[%clk 0:00:43]} 27. Nf6+ {[%clk 0:00:08]}  Rxf6 {[%clk 0:00:42]} 28. gxf6 {[%clk 0:00:09]}  Nd3+ {[%clk 0:00:43]} 29. Kd2 {[%clk 0:00:09]}  Nxe1 {[%clk 0:00:44]} 30. Kxe1 {[%clk 0:00:10]}  Kf7 {[%clk 0:00:41]} 31. Kf2 {[%clk 0:00:08]}  e4 {[%clk 0:00:41]} 0-1


[Site "https://www.chess.com"]

[Event "Titled Tuesday Blitz November 08 Early 2022"]
[White "Fawzy, Adham"]
[Black "Aaditya Dhingra"]
[WhiteFideId "10613129"]
[BlackFideId "25678191"]
[WhiteElo "2541"]
[BlackElo "2054"]
[Result "0-1"]
[Round "10"]
[TimeControl "180+1"]
[Date "2022.11.09"]
[WhiteClock "0:00:05"]
[BlackClock "0:00:09"]

1. e4 {[%clk 0:03:00]}  c6 {[%clk 0:02:59]} 2. d4 {[%clk 0:03:00]}  d5 {[%clk 0:03:00]} 3. e5 {[%clk 0:03:01]}  Bf5 {[%clk 0:02:59]} 4. Nf3 {[%clk 0:03:01]}  e6 {[%clk 0:02:57]} 5. Be2 {[%clk 0:03:01]}  Ne7 {[%clk 0:02:56]} 6. c3 {[%clk 0:03:01]}  Nd7 {[%clk 0:02:54]} 7. O-O {[%clk 0:03:00]}  Nc8 {[%clk 0:02:52]} 8. a4 {[%clk 0:02:53]}  Be7 {[%clk 0:02:52]} 9. a5 {[%clk 0:02:53]}  a6 {[%clk 0:02:51]} 10. b4 {[%clk 0:02:53]}  O-O {[%clk 0:02:49]} 11. Bd3 {[%clk 0:02:53]}  Bxd3 {[%clk 0:02:32]} 12. Qxd3 {[%clk 0:02:54]}  f6 {[%clk 0:02:15]} 13. Bf4 {[%clk 0:02:07]}  fxe5 {[%clk 0:01:58]} 14. Bxe5 {[%clk 0:02:08]}  Nd6 {[%clk 0:01:04]} 15. Nbd2 {[%clk 0:01:32]}  Nxe5 {[%clk 0:01:03]} 16. Nxe5 {[%clk 0:01:30]}  Bf6 {[%clk 0:00:59]} 17. Rae1 {[%clk 0:01:26]}  Bxe5 {[%clk 0:00:53]} 18. Rxe5 {[%clk 0:01:26]}  Qf6 {[%clk 0:00:54]} 19. Qe2 {[%clk 0:01:10]}  Rae8 {[%clk 0:00:53]} 20. Re1 {[%clk 0:01:02]}  Rf7 {[%clk 0:00:38]} 21. f3 {[%clk 0:00:32]}  Rfe7 {[%clk 0:00:37]} 22. Qd3 {[%clk 0:00:22]}  Nf7 {[%clk 0:00:36]} 23. R5e2 {[%clk 0:00:18]}  e5 {[%clk 0:00:35]} 24. Nb3 {[%clk 0:00:17]}  exd4 {[%clk 0:00:25]} 25. cxd4 {[%clk 0:00:16]}  Nd6 {[%clk 0:00:20]} 26. Kh1 {[%clk 0:00:07]}  Nb5 {[%clk 0:00:14]} 27. h3 {[%clk 0:00:02]}  h6 {[%clk 0:00:10]} 28. Kh2 {[%clk 0:00:02]}  Qf4+ {[%clk 0:00:09]} 29. g3 {[%clk 0:00:01]}  Qf6 {[%clk 0:00:09]} 30. Kg2 {[%clk 0:00:01]}  Rxe2+ {[%clk 0:00:08]} 31. Rxe2 {[%clk 0:00:02]}  Rxe2+ {[%clk 0:00:09]} 32. Qxe2 {[%clk 0:00:03]}  Nxd4 {[%clk 0:00:07]} 33. Qe8+ {[%clk 0:00:04]}  Kh7 {[%clk 0:00:07]} 34. Nc5 {[%clk 0:00:04]}  Qxf3+ {[%clk 0:00:07]} 35. Kh2 {[%clk 0:00:04]}  Qf2+ {[%clk 0:00:07]} 36. Kh1 {[%clk 0:00:05]}  Qf1+ {[%clk 0:00:08]} 37. Kh2 {[%clk 0:00:05]}  Nf3# {[%clk 0:00:09]} 0-1


[Site "https://www.chess.com"]

[Event "Titled Tuesday Blitz November 08 Early 2022"]
[White "Fernandez Guillen, Ernesto J."]
[Black "Streltsov, Alexey"]
[WhiteFideId "3512428"]
[BlackFideId "24104434"]
[WhiteElo "2450"]
[BlackElo "2594"]
[Result "1-0"]
[Round "10"]
[TimeControl "180+1"]
[Date "2022.11.09"]
[WhiteClock "0:00:13"]
[BlackClock "0:00:23"]

1. e4 {[%clk 0:03:00]}  c6 {[%clk 0:03:00]} 2. d4 {[%clk 0:03:00]}  d5 {[%clk 0:03:01]} 3. e5 {[%clk 0:03:01]}  Bf5 {[%clk 0:03:00]} 4. c3 {[%clk 0:03:00]}  e6 {[%clk 0:03:00]} 5. Bd3 {[%clk 0:03:01]}  Bxd3 {[%clk 0:02:59]} 6. Qxd3 {[%clk 0:03:02]}  c5 {[%clk 0:02:51]} 7. Ne2 {[%clk 0:03:03]}  Nc6 {[%clk 0:02:51]} 8. O-O {[%clk 0:03:02]}  Nge7 {[%clk 0:02:49]} 9. Nd2 {[%clk 0:03:02]}  h5 {[%clk 0:02:48]} 10. Nf3 {[%clk 0:03:02]}  Nf5 {[%clk 0:02:47]} 11. h3 {[%clk 0:03:01]}  Qb6 {[%clk 0:02:40]} 12. Be3 {[%clk 0:02:58]}  c4 {[%clk 0:02:32]} 13. Qc2 {[%clk 0:02:57]}  a6 {[%clk 0:02:21]} 14. b3 {[%clk 0:02:57]}  Na5 {[%clk 0:02:20]} 15. Rfb1 {[%clk 0:02:50]}  Qc7 {[%clk 0:02:18]} 16. b4 {[%clk 0:02:50]}  Nc6 {[%clk 0:02:17]} 17. b5 {[%clk 0:02:51]}  axb5 {[%clk 0:02:02]} 18. Rxb5 {[%clk 0:02:52]}  Ba3 {[%clk 0:02:02]} 19. Rab1 {[%clk 0:02:50]}  Ra7 {[%clk 0:02:01]} 20. Nf4 {[%clk 0:02:38]}  g6 {[%clk 0:02:00]} 21. g4 {[%clk 0:02:27]}  hxg4 {[%clk 0:01:58]} 22. hxg4 {[%clk 0:02:28]}  Nh6 {[%clk 0:01:37]} 23. Nh2 {[%clk 0:02:25]}  Qe7 {[%clk 0:01:19]} 24. f3 {[%clk 0:02:11]}  Ng8 {[%clk 0:01:17]} 25. Ng2 {[%clk 0:01:49]}  Kd8 {[%clk 0:01:17]} 26. Qd2 {[%clk 0:01:41]}  Kc8 {[%clk 0:01:17]} 27. Bg5 {[%clk 0:01:40]}  Qd7 {[%clk 0:01:17]} 28. Nf1 {[%clk 0:01:39]}  Nge7 {[%clk 0:01:15]} 29. Ng3 {[%clk 0:01:38]}  Kb8 {[%clk 0:01:15]} 30. Ne1 {[%clk 0:01:31]}  Nc8 {[%clk 0:01:15]} 31. Nc2 {[%clk 0:01:29]}  Be7 {[%clk 0:01:15]} 32. R1b2 {[%clk 0:01:22]}  Bxg5 {[%clk 0:01:14]} 33. Qxg5 {[%clk 0:01:22]}  Qe7 {[%clk 0:01:15]} 34. Qxe7 {[%clk 0:01:22]}  N8xe7 {[%clk 0:01:15]} 35. Kg2 {[%clk 0:01:20]}  Kc7 {[%clk 0:01:16]} 36. f4 {[%clk 0:01:12]}  Rh4 {[%clk 0:01:13]} 37. Ne3 {[%clk 0:01:08]}  Nd8 {[%clk 0:00:54]} 38. Ne2 {[%clk 0:00:45]}  Ra3 {[%clk 0:00:45]} 39. f5 {[%clk 0:00:34]}  gxf5 {[%clk 0:00:44]} 40. gxf5 {[%clk 0:00:34]}  Rh5 {[%clk 0:00:28]} 41. f6 {[%clk 0:00:32]}  Nf5 {[%clk 0:00:28]} 42. Kf3 {[%clk 0:00:32]}  Rh3+ {[%clk 0:00:27]} 43. Kf4 {[%clk 0:00:31]}  Rxe3 {[%clk 0:00:27]} 44. Rc5+ {[%clk 0:00:25]}  Kd7 {[%clk 0:00:27]} 45. Rcb5 {[%clk 0:00:25]}  Ra6 {[%clk 0:00:22]} 46. Rxb7+ {[%clk 0:00:23]}  Nxb7 {[%clk 0:00:21]} 47. Rxb7+ {[%clk 0:00:24]}  Ke8 {[%clk 0:00:20]} 48. Rb8+ {[%clk 0:00:24]}  Kd7 {[%clk 0:00:20]} 49. Rb7+ {[%clk 0:00:25]}  Kc6 {[%clk 0:00:21]} 50. Rxf7 {[%clk 0:00:23]}  Rxe2 {[%clk 0:00:21]} 51. Rf8 {[%clk 0:00:22]}  Raxa2 {[%clk 0:00:22]} 52. Rc8+ {[%clk 0:00:18]}  Kb7 {[%clk 0:00:21]} 53. f7 {[%clk 0:00:18]}  Rg2 {[%clk 0:00:21]} 54. Rb8+ {[%clk 0:00:15]}  Kc7 {[%clk 0:00:21]} 55. Rc8+ {[%clk 0:00:14]}  Kd7 {[%clk 0:00:22]} 56. Rd8+ {[%clk 0:00:14]}  Ke7 {[%clk 0:00:23]} 57. f8=Q# {[%clk 0:00:13]} 1-0


[Site "https://www.chess.com"]

[Event "Titled Tuesday Blitz November 08 Early 2022"]
[White "Goltsev, Dmitry"]
[Black "Deac, Bogdan-Daniel"]
[WhiteFideId "24176710"]
[BlackFideId "1226380"]
[WhiteElo "2289"]
[BlackElo "2648"]
[Result "0-1"]
[Round "10"]
[TimeControl "180+1"]
[Date "2022.11.08"]
[WhiteClock "0:00:09"]
[BlackClock "0:00:09"]

1. e4 {[%clk 0:03:00]}  c6 {[%clk 0:03:00]} 2. d4 {[%clk 0:03:00]}  d5 {[%clk 0:03:00]} 3. Nc3 {[%clk 0:03:01]}  a6 {[%clk 0:03:01]} 4. Nf3 {[%clk 0:03:01]}  Bg4 {[%clk 0:03:00]} 5. h3 {[%clk 0:03:01]}  Bh5 {[%clk 0:03:00]} 6. g4 {[%clk 0:02:58]}  Bg6 {[%clk 0:02:59]} 7. exd5 {[%clk 0:02:58]}  cxd5 {[%clk 0:03:00]} 8. Ne5 {[%clk 0:02:57]}  Nc6 {[%clk 0:02:52]} 9. Bg2 {[%clk 0:02:51]}  e6 {[%clk 0:02:49]} 10. h4 {[%clk 0:02:49]}  Nxe5 {[%clk 0:02:48]} 11. dxe5 {[%clk 0:02:50]}  h5 {[%clk 0:02:48]} 12. g5 {[%clk 0:02:41]}  Ne7 {[%clk 0:02:47]} 13. Ne2 {[%clk 0:02:40]}  Nc6 {[%clk 0:02:46]} 14. Bf4 {[%clk 0:02:19]}  Nb4 {[%clk 0:02:11]} 15. Nd4 {[%clk 0:02:16]}  Bc5 {[%clk 0:02:10]} 16. O-O {[%clk 0:01:41]}  Bxd4 {[%clk 0:02:08]} 17. c3 {[%clk 0:01:18]}  Nd3 {[%clk 0:02:08]} 18. Qa4+ {[%clk 0:01:13]}  Qd7 {[%clk 0:01:47]} 19. Qxd4 {[%clk 0:01:14]}  Rc8 {[%clk 0:01:46]} 20. b3 {[%clk 0:01:05]}  Nxf4 {[%clk 0:01:41]} 21. Qxf4 {[%clk 0:01:06]}  Rxc3 {[%clk 0:01:41]} 22. Rac1 {[%clk 0:01:06]}  Rxc1 {[%clk 0:01:41]} 23. Rxc1 {[%clk 0:01:07]}  O-O {[%clk 0:01:41]} 24. Qb4 {[%clk 0:00:58]}  Rc8 {[%clk 0:01:40]} 25. Rc5 {[%clk 0:00:57]}  Rc6 {[%clk 0:01:18]} 26. Rxc6 {[%clk 0:00:48]}  Qxc6 {[%clk 0:01:18]} 27. Kh2 {[%clk 0:00:47]}  Qc2 {[%clk 0:01:12]} 28. Kg3 {[%clk 0:00:40]}  Qxa2 {[%clk 0:00:59]} 29. Qxb7 {[%clk 0:00:40]}  a5 {[%clk 0:01:00]} 30. Bf3 {[%clk 0:00:36]}  Kh7 {[%clk 0:00:56]} 31. Qb5 {[%clk 0:00:29]}  Qb2 {[%clk 0:00:42]} 32. Qxa5 {[%clk 0:00:21]}  Qxb3 {[%clk 0:00:41]} 33. Kg2 {[%clk 0:00:18]}  d4 {[%clk 0:00:33]} 34. Qd2 {[%clk 0:00:16]}  d3 {[%clk 0:00:33]} 35. Qd1 {[%clk 0:00:15]}  Qc4 {[%clk 0:00:19]} 36. Bxh5 {[%clk 0:00:13]}  Qe4+ {[%clk 0:00:17]} 37. Kg1 {[%clk 0:00:06]}  Bf5 {[%clk 0:00:05]} 38. Bf3 {[%clk 0:00:03]}  Qxh4 {[%clk 0:00:05]} 39. Qd2 {[%clk 0:00:04]}  Kg6 {[%clk 0:00:04]} 40. Qe3 {[%clk 0:00:04]}  Qxg5+ {[%clk 0:00:04]} 41. Kf1 {[%clk 0:00:03]}  Qxe3 {[%clk 0:00:04]} 42. fxe3 {[%clk 0:00:04]}  Kg5 {[%clk 0:00:04]} 43. Ke1 {[%clk 0:00:04]}  Kh4 {[%clk 0:00:04]} 44. Kd2 {[%clk 0:00:04]}  Kg3 {[%clk 0:00:02]} 45. Bc6 {[%clk 0:00:05]}  g5 {[%clk 0:00:01]} 46. e4 {[%clk 0:00:05]}  Bg6 {[%clk 0:00:02]} 47. Kxd3 {[%clk 0:00:06]}  Kf2 {[%clk 0:00:02]} 48. Bd7 {[%clk 0:00:01]}  g4 {[%clk 0:00:03]} 49. Bxe6 {[%clk 0:00:02]}  fxe6 {[%clk 0:00:03]} 50. Kd4 {[%clk 0:00:02]}  g3 {[%clk 0:00:04]} 51. Kc4 {[%clk 0:00:03]}  Bxe4 {[%clk 0:00:04]} 52. Kc5 {[%clk 0:00:04]}  Bf5 {[%clk 0:00:05]} 53. Kd6 {[%clk 0:00:05]}  g2 {[%clk 0:00:06]} 54. Ke7 {[%clk 0:00:06]}  g1=Q {[%clk 0:00:07]} 55. Kf6 {[%clk 0:00:07]}  Qg3 {[%clk 0:00:07]} 56. Kf7 {[%clk 0:00:07]}  Ke3 {[%clk 0:00:07]} 57. Kf8 {[%clk 0:00:07]}  Ke4 {[%clk 0:00:07]} 58. Kf7 {[%clk 0:00:07]}  Kxe5 {[%clk 0:00:08]} 59. Kf8 {[%clk 0:00:08]}  Kf6 {[%clk 0:00:08]} 60. Ke8 {[%clk 0:00:09]}  Qc7 {[%clk 0:00:08]} 61. Kf8 {[%clk 0:00:09]}  Qd8# {[%clk 0:00:09]} 0-1


[Site "https://www.chess.com"]

[Event "Titled Tuesday Blitz November 08 Early 2022"]
[White "Goncalves, Davi Sulzbacher"]
[Black "Mazzilli, Piero"]
[WhiteFideId "2154510"]
[BlackFideId "807087"]
[WhiteElo "2182"]
[BlackElo "2295"]
[Result "1-0"]
[Round "10"]
[TimeControl "180+1"]
[Date "2022.11.09"]
[WhiteClock "0:02:11"]
[BlackClock "0:01:32"]

1. Nf3 {[%clk 0:02:56]}  d5 {[%clk 0:02:59]} 2. Nc3 {[%clk 0:02:56]}  Nf6 {[%clk 0:02:58]} 3. d4 {[%clk 0:02:54]}  c5 {[%clk 0:02:57]} 4. Bg5 {[%clk 0:02:54]}  e6 {[%clk 0:02:56]} 5. e4 {[%clk 0:02:53]}  Be7 {[%clk 0:02:51]} 6. Bxf6 {[%clk 0:02:52]}  Bxf6 {[%clk 0:02:51]} 7. exd5 {[%clk 0:02:49]}  cxd4 {[%clk 0:02:49]} 8. Bb5+ {[%clk 0:02:44]}  Kf8 {[%clk 0:02:39]} 9. Nxd4 {[%clk 0:02:40]}  exd5 {[%clk 0:02:37]} 10. O-O {[%clk 0:02:37]}  a6 {[%clk 0:02:36]} 11. Ba4 {[%clk 0:02:34]}  Qd6 {[%clk 0:02:09]} 12. Re1 {[%clk 0:02:25]}  Nc6 {[%clk 0:02:08]} 13. Nxc6 {[%clk 0:02:19]}  bxc6 {[%clk 0:01:55]} 14. Qxd5 {[%clk 0:02:18]}  Qxd5 {[%clk 0:01:45]} 15. Nxd5 {[%clk 0:02:18]}  Be6 {[%clk 0:01:31]} 16. Nxf6 {[%clk 0:02:12]}  gxf6 {[%clk 0:01:32]} 17. Bxc6 {[%clk 0:02:12]}  Rc8 {[%clk 0:01:32]} 18. Ba4 {[%clk 0:02:11]} 1-0


[Site "https://www.chess.com"]

[Event "Titled Tuesday Blitz November 08 Early 2022"]
[White "Goroshkov, Maksym"]
[Black "Kukula, Pawel"]
[WhiteFideId "14142716"]
[BlackFideId "1115081"]
[WhiteElo "2257"]
[BlackElo "2046"]
[Result "1-0"]
[Round "10"]
[TimeControl "180+1"]
[Date "2022.11.09"]
[WhiteClock "0:00:30"]
[BlackClock "0:00:04"]

1. e4 {[%clk 0:02:57]}  c5 {[%clk 0:02:59]} 2. d4 {[%clk 0:02:58]}  cxd4 {[%clk 0:03:00]} 3. c3 {[%clk 0:02:58]}  Nf6 {[%clk 0:03:00]} 4. Bd3 {[%clk 0:02:58]}  Nc6 {[%clk 0:02:58]} 5. Nf3 {[%clk 0:02:57]}  d5 {[%clk 0:02:46]} 6. e5 {[%clk 0:02:55]}  Ne4 {[%clk 0:02:46]} 7. cxd4 {[%clk 0:02:55]}  Bf5 {[%clk 0:02:44]} 8. O-O {[%clk 0:02:54]}  e6 {[%clk 0:02:44]} 9. Nc3 {[%clk 0:02:53]}  Be7 {[%clk 0:02:40]} 10. Re1 {[%clk 0:02:52]}  Nxc3 {[%clk 0:02:34]} 11. bxc3 {[%clk 0:02:53]}  Bg6 {[%clk 0:02:33]} 12. Rb1 {[%clk 0:02:47]}  Rb8 {[%clk 0:02:25]} 13. Bxg6 {[%clk 0:02:41]}  fxg6 {[%clk 0:02:22]} 14. h4 {[%clk 0:02:28]}  Bxh4 {[%clk 0:02:14]} 15. Nxh4 {[%clk 0:02:24]}  Qxh4 {[%clk 0:02:15]} 16. Ba3 {[%clk 0:02:24]}  Kf7 {[%clk 0:02:08]} 17. Bd6 {[%clk 0:02:22]}  Rhc8 {[%clk 0:01:39]} 18. Qa4 {[%clk 0:01:54]}  Qd8 {[%clk 0:01:32]} 19. Rb3 {[%clk 0:01:40]}  Qd7 {[%clk 0:01:23]} 20. Reb1 {[%clk 0:01:38]}  b6 {[%clk 0:01:20]} 21. Bxb8 {[%clk 0:01:28]}  Rxb8 {[%clk 0:01:17]} 22. c4 {[%clk 0:01:23]}  Rc8 {[%clk 0:01:15]} 23. cxd5 {[%clk 0:01:22]}  Qxd5 {[%clk 0:01:16]} 24. Rc3 {[%clk 0:01:13]}  Ne7 {[%clk 0:00:46]} 25. Rxc8 {[%clk 0:01:08]}  Nxc8 {[%clk 0:00:47]} 26. Rc1 {[%clk 0:01:00]}  Ne7 {[%clk 0:00:45]} 27. Rc7 {[%clk 0:00:53]}  Kf8 {[%clk 0:00:19]} 28. Qb4 {[%clk 0:00:40]}  Qd8 {[%clk 0:00:17]} 29. Rxa7 {[%clk 0:00:40]}  g5 {[%clk 0:00:14]} 30. Rb7 {[%clk 0:00:38]}  Kf7 {[%clk 0:00:06]} 31. Qxb6 {[%clk 0:00:36]}  Qc8 {[%clk 0:00:06]} 32. Qc7 {[%clk 0:00:31]}  Qe8 {[%clk 0:00:04]} 33. a4 {[%clk 0:00:30]} 1-0


[Site "https://www.chess.com"]

[Event "Titled Tuesday Blitz November 08 Early 2022"]
[White "Gronnestad, Anita"]
[Black "Bongo Akanga Ndjila, Barthelemy"]
[WhiteFideId "1502972"]
[BlackFideId "10609431"]
[WhiteElo "1939"]
[BlackElo "1768"]
[Result "1-0"]
[Round "10"]
[TimeControl "180+1"]
[Date "2022.11.09"]
[WhiteClock "0:00:47"]
[BlackClock "0:00:44"]

1. d4 {[%clk 0:03:00]}  d5 {[%clk 0:02:55]} 2. c4 {[%clk 0:03:00]}  e6 {[%clk 0:02:54]} 3. Nf3 {[%clk 0:03:00]}  Nf6 {[%clk 0:02:53]} 4. Nc3 {[%clk 0:03:00]}  Be7 {[%clk 0:02:52]} 5. Bg5 {[%clk 0:03:00]}  O-O {[%clk 0:02:52]} 6. e3 {[%clk 0:03:01]}  b6 {[%clk 0:02:51]} 7. Qc2 {[%clk 0:02:59]}  Bb7 {[%clk 0:02:50]} 8. Rd1 {[%clk 0:02:58]}  Nbd7 {[%clk 0:02:47]} 9. h4 {[%clk 0:02:58]}  h6 {[%clk 0:02:46]} 10. cxd5 {[%clk 0:02:57]}  Nxd5 {[%clk 0:02:45]} 11. Nxd5 {[%clk 0:02:51]}  Bxd5 {[%clk 0:02:39]} 12. Bxe7 {[%clk 0:02:50]}  Qxe7 {[%clk 0:02:38]} 13. Bd3 {[%clk 0:02:42]}  Nf6 {[%clk 0:02:37]} 14. Ne5 {[%clk 0:02:40]}  c5 {[%clk 0:02:36]} 15. O-O {[%clk 0:02:36]}  Rfc8 {[%clk 0:02:33]} 16. Qe2 {[%clk 0:02:35]}  cxd4 {[%clk 0:02:33]} 17. exd4 {[%clk 0:02:35]}  Bxa2 {[%clk 0:02:24]} 18. f4 {[%clk 0:02:30]}  Nd5 {[%clk 0:02:18]} 19. f5 {[%clk 0:02:28]}  exf5 {[%clk 0:02:15]} 20. Bxf5 {[%clk 0:02:17]}  Re8 {[%clk 0:02:12]} 21. Qh5 {[%clk 0:02:13]}  Nf6 {[%clk 0:02:07]} 22. Qf3 {[%clk 0:02:10]}  Bd5 {[%clk 0:02:06]} 23. Qg3 {[%clk 0:02:08]}  Be6 {[%clk 0:02:03]} 24. Bb1 {[%clk 0:02:06]}  Rad8 {[%clk 0:01:58]} 25. Qd3 {[%clk 0:02:05]}  g6 {[%clk 0:01:51]} 26. Nxg6 {[%clk 0:02:00]}  fxg6 {[%clk 0:01:50]} 27. Qxg6+ {[%clk 0:02:01]}  Qg7 {[%clk 0:01:50]} 28. Rxf6 {[%clk 0:01:46]}  Qxg6 {[%clk 0:01:49]} 29. Rxg6+ {[%clk 0:01:47]}  Kf8 {[%clk 0:01:38]} 30. Rf1+ {[%clk 0:01:42]}  Bf7 {[%clk 0:01:36]} 31. Rgf6 {[%clk 0:01:38]}  Re7 {[%clk 0:01:35]} 32. Ba2 {[%clk 0:01:29]}  Rdd7 {[%clk 0:01:33]} 33. d5 {[%clk 0:01:21]}  Kg7 {[%clk 0:01:33]} 34. d6 {[%clk 0:01:17]}  Bxa2 {[%clk 0:01:24]} 35. dxe7 {[%clk 0:01:17]}  Rxe7 {[%clk 0:01:25]} 36. Rd6 {[%clk 0:01:12]}  Bc4 {[%clk 0:01:24]} 37. Rff6 {[%clk 0:01:10]}  h5 {[%clk 0:01:22]} 38. Rg6+ {[%clk 0:01:09]}  Kf7 {[%clk 0:01:19]} 39. Rdf6+ {[%clk 0:01:09]}  Ke8 {[%clk 0:01:19]} 40. Rh6 {[%clk 0:01:05]}  Re5 {[%clk 0:01:10]} 41. Rc6 {[%clk 0:00:59]}  b5 {[%clk 0:01:10]} 42. Rc7 {[%clk 0:00:58]}  Kd8 {[%clk 0:01:05]} 43. Rxa7 {[%clk 0:00:57]}  Re1+ {[%clk 0:00:51]} 44. Kh2 {[%clk 0:00:54]}  Re8 {[%clk 0:00:46]} 45. Ra8+ {[%clk 0:00:49]}  Ke7 {[%clk 0:00:44]} 46. Rh7+ {[%clk 0:00:48]}  Kf8 {[%clk 0:00:43]} 47. Rh8+ {[%clk 0:00:47]}  Bg8 {[%clk 0:00:43]} 48. Rxg8+ {[%clk 0:00:46]}  Kxg8 {[%clk 0:00:44]} 49. Rxe8+ {[%clk 0:00:46]}  Kf7 {[%clk 0:00:44]} 50. Re5 {[%clk 0:00:47]} 1-0


[Site "https://www.chess.com"]